bitfinex/quotes_BTCUSD_20240730
["timestamp","ask_amount","ask_price","bid_price","bid_amount"]
[1722380394888,0.0085,66348.0,66347.0,1.92359504]
[1722380395855,0.0085,66348.0,66347.0,1.94359504]
[1722380396321,0.0085,66348.0,66347.0,1.92359504]
[1722380397493,0.0085,66348.0,66347.0,1.845899]
[1722380397767,0.0085,66348.0,66347.0,1.932599]
[1722380401057,0.0085,66348.0,66347.0,1.845899]
[1722380401295,0.0085,66348.0,66347.0,1.51650596]
[1722380401520,0.0085,66348.0,66347.0,1.61320596]
[1722380401744,0.0085,66348.0,66347.0,1.64342596]
[1722380401966,0.0085,66348.0,66347.0,1.72272596]
[1722380405579,0.0085,66348.0,66347.0,1.63602596]
[1722380405824,0.0085,66348.0,66347.0,1.72272596]
[1722380407254,0.00662271,66348.0,66347.0,1.72272596]
[1722380410462,0.00662271,66348.0,66347.0,1.938359]
[1722380411145,0.00662271,66348.0,66347.0,2.239804]
[1722380411406,0.00662271,66348.0,66347.0,2.225804]
[1722380411662,0.00662271,66348.0,66347.0,2.247804]
[1722380411903,0.00662271,66348.0,66347.0,2.261804]
[1722380412363,0.00662271,66348.0,66347.0,2.247804]
[1722380412596,0.00662271,66348.0,66347.0,2.261804]
[1722380413096,0.00662271,66348.0,66347.0,2.233804]
[1722380413322,0.00662271,66348.0,66347.0,2.261804]
[1722380415207,0.00662271,66348.0,66347.0,2.239804]
[1722380415416,0.00662271,66348.0,66347.0,1.938359]
[1722380417044,0.00662271,66348.0,66347.0,2.06363436]
[1722380417417,0.00662271,66348.0,66347.0,2.36507936]
[1722380417824,0.00662271,66348.0,66347.0,2.239804]
[1722380418064,0.00662271,66348.0,66347.0,2.36507863]
[1722380420927,0.00662271,66348.0,66347.0,2.38507863]
[1722380421170,0.00662271,66348.0,66347.0,2.239804]
[1722380421390,0.00662271,66348.0,66347.0,2.36507859]
[1722380421616,0.00662271,66348.0,66347.0,2.239804]
[1722380421858,0.00662271,66348.0,66347.0,2.36507954]
[1722380423228,0.00662271,66348.0,66347.0,2.27837954]
[1722380423451,0.00662271,66348.0,66347.0,2.36508214]
[1722380424376,0.00662271,66348.0,66347.0,2.36508213]
[1722380424607,0.00662271,66348.0,66347.0,2.36508214]
[1722380430906,0.00662271,66348.0,66347.0,2.36508238]
[1722380434184,0.00662271,66348.0,66347.0,2.36508217]
[1722380434643,0.00083,66351.0,66350.0,1.86239]
[1722380434872,0.00083,66351.0,66350.0,2.35000119]
[1722380435916,0.00083,66351.0,66350.0,2.36400119]
[1722380436320,0.00083,66351.0,66350.0,2.34999439]
[1722380436752,0.00083,66351.0,66350.0,2.36399439]
[1722380437462,0.00083,66351.0,66350.0,2.25272304]
[1722380437691,0.00083,66351.0,66350.0,2.05456339]
[1722380437892,0.00083,66351.0,66350.0,2.04056339]
[1722380438119,0.00083,66351.0,66350.0,2.05456339]
[1722380438350,0.00083,66351.0,66350.0,1.96786339]
[1722380438579,0.00083,66351.0,66350.0,1.60971035]
[1722380438580,0.14213,66351.0,66350.0,1.60971035]
[1722380438812,0.14213,66351.0,66350.0,0.881577]
[1722380438813,0.21003973,66351.0,66350.0,0.881577]
[1722380439056,0.14213,66351.0,66350.0,0.781577]
[1722380439281,0.25531288,66351.0,66350.0,1.083008]
[1722380439505,0.14213,66351.0,66350.0,1.083008]
[1722380439724,0.14213,66351.0,66350.0,1.069008]
[1722380439941,0.23266565,66351.0,66350.0,1.069008]
[1722380440167,0.14213,66351.0,66350.0,1.083008]
[1722380440398,0.23266725,66351.0,66350.0,1.069008]
[1722380440878,0.06533,66351.0,66350.0,1.069008]
[1722380441155,0.06533,66351.0,66350.0,1.106008]
[1722380441376,0.13323141,66351.0,66350.0,1.092008]
[1722380441812,0.06873141,66351.0,66350.0,1.106008]
[1722380442527,0.06873141,66351.0,66350.0,1.407439]
[1722380442775,0.00083,66351.0,66350.0,1.407439]
[1722380444384,0.00083,66351.0,66350.0,1.64637204]
[1722380444385,0.04608005,66351.0,66350.0,1.64637204]
[1722380444623,0.00083,66351.0,66350.0,1.64637204]
[1722380444855,0.04607901,66351.0,66350.0,1.56807204]
[1722380446211,0.00083,66351.0,66350.0,1.56807204]
[1722380447980,0.04607788,66351.0,66350.0,1.56807204]
[1722380448994,0.00083,66351.0,66350.0,1.73649204]
[1722380449196,0.00083,66351.0,66350.0,2.26319852]
[1722380449404,0.04524788,66357.0,66356.0,1.366318]
[1722380449605,0.04524788,66358.0,66357.0,0.4521]
[1722380449803,0.0085,66359.0,66358.0,0.150697]
[1722380450008,0.0085,66359.0,66358.0,0.753487]
[1722380450286,0.0085,66359.0,66358.0,1.379277]
[1722380450732,0.05375056,66359.0,66358.0,1.379277]
[1722380450942,0.0085,66359.0,66358.0,1.379277]
[1722380454570,0.0085,66359.0,66358.0,1.393277]
[1722380455186,0.0085,66359.0,66358.0,1.407277]
[1722380456528,0.0085,66359.0,66358.0,1.493977]
[1722380459696,0.0085,66359.0,66358.0,1.5029529]
[1722380464861,0.0085,66359.0,66358.0,1.5048999]
[1722380468127,0.0891,66359.0,66358.0,1.1168049]
[1722380468371,0.0891,66359.0,66358.0,1.2035049]
[1722380468372,0.19687507,66359.0,66358.0,1.2035049]
[1722380469013,0.1517,66359.0,66358.0,1.2035049]
[1722380470205,0.0085,66359.0,66358.0,2.10992794]
[1722380470414,0.0085,66359.0,66358.0,2.33518033]
[1722380470619,0.0085,66359.0,66358.0,2.36540033]
[1722380471844,0.0085,66359.0,66358.0,2.35140033]
[1722380472288,0.0085,66359.0,66358.0,2.38540033]
[1722380472511,0.0085,66359.0,66358.0,2.37339462]
[1722380472730,0.00083,66360.0,66358.0,2.37339462]
[1722380472731,0.00083,66360.0,66359.0,1.719865]
[1722380472917,0.00083,66360.0,66359.0,2.26354252]
[1722380473652,0.00083,66360.0,66359.0,2.24154252]
[1722380473866,0.00083,66360.0,66359.0,2.26154252]
[1722380474130,0.00083,66360.0,66359.0,2.26354252]
[1722380475197,0.00083,66360.0,66359.0,2.29154252]
[1722380478061,0.00083,66360.0,66359.0,2.59293252]
[1722380478284,0.0085,66364.0,66363.0,0.343006]
[1722380478500,0.0085,66364.0,66363.0,1.34462752]
[1722380478726,0.0085,66364.0,66363.0,2.02717152]
[1722380478956,0.0085,66364.0,66363.0,2.32854352]
[1722380479231,0.0085,66364.0,66363.0,2.32854312]
[1722380479677,0.0085,66364.0,66363.0,2.35654312]
[1722380482311,0.0085,66364.0,66363.0,2.35654166]
[1722380482767,0.0085,66364.0,66363.0,2.23129904]
[1722380483031,0.0085,66364.0,66363.0,2.35654166]
[1722380484356,0.0085,66364.0,66363.0,2.23129904]
[1722380484796,0.0085,66364.0,66363.0,2.35654335]
[1722380485027,0.0085,66364.0,66363.0,2.35654271]
[1722380485259,0.0085,66364.0,66363.0,2.35654291]
[1722380485777,0.0085,66364.0,66363.0,2.3565417]
[1722380487725,0.0085,66364.0,66363.0,2.3765417]
[1722380487937,0.0085,66364.0,66363.0,2.3565417]
[1722380488148,0.0085,66364.0,66363.0,2.3765417]
[1722380488360,0.0085,66364.0,66363.0,2.3565417]
[1722380489015,0.0085,66364.0,66363.0,2.35654166]
[1722380489668,0.0085,66364.0,66363.0,2.37654166]
[1722380490124,0.0085,66364.0,66363.0,2.35654166]
[1722380491695,0.0085,66364.0,66363.0,2.37854166]
[1722380492372,0.0085,66364.0,66363.0,2.37854322]
[1722380492807,0.0085,66364.0,66363.0,2.37854261]
[1722380493239,0.0085,66364.0,66363.0,2.35654261]
[1722380494445,0.0085,66364.0,66363.0,2.37854261]
[1722380495568,0.0085,66364.0,66363.0,2.37854305]
[1722380495789,0.0085,66364.0,66363.0,2.37854308]
[1722380496718,0.0085,66364.0,66363.0,2.35654308]
[1722380496939,0.0085,66364.0,66363.0,2.37854308]
[1722380498939,0.0085,66364.0,66363.0,2.37854166]
[1722380502584,0.0085,66364.0,66363.0,1.86452704]
[1722380502806,0.0085,66364.0,66363.0,1.90996966]
[1722380505664,0.0085,66364.0,66363.0,1.90997261]
[1722380505901,0.0085,66364.0,66363.0,1.78472704]
[1722380506150,0.0085,66364.0,66363.0,1.90997261]
[1722380507633,0.0085,66364.0,66363.0,1.78472704]
[1722380507846,0.0085,66364.0,66363.0,1.90997261]
[1722380508441,0.0085,66364.0,66363.0,1.82327261]
[1722380508646,0.0709,66364.0,66363.0,1.66263957]
[1722380508911,0.0524,66364.0,66363.0,0.88143]
[1722380509336,0.04601748,66366.0,66363.0,0.128]
[1722380509337,0.04517748,66365.0,66363.0,0.128]
[1722380509510,0.00084,66366.0,66363.0,0.128]
[1722380509511,0.00084,66366.0,66365.0,0.452044]
[1722380509716,0.00084,66366.0,66365.0,1.68206604]
[1722380510094,0.00084,66366.0,66365.0,1.76026604]
[1722380510299,0.00084,66366.0,66365.0,1.78326604]
[1722380511549,0.00084,66366.0,66365.0,1.79726604]
[1722380512212,0.00084,66366.0,66365.0,1.81126604]
[1722380514019,0.00084,66366.0,66365.0,1.93651172]
[1722380516168,0.00084,66366.0,66365.0,1.95651172]
[1722380516385,0.00084,66366.0,66365.0,1.93651172]
[1722380516868,0.00084,66366.0,66365.0,1.95651172]
[1722380517053,0.00084,66366.0,66365.0,1.93651172]
[1722380517931,0.00084,66366.0,66365.0,2.29009472]
[1722380518794,0.00084,66366.0,66365.0,2.27609472]
[1722380519055,0.00084,66366.0,66365.0,2.13684904]
[1722380519261,0.00084,66366.0,66365.0,2.26209086]
[1722380519440,0.00084,66366.0,66365.0,2.27609086]
[1722380520112,0.00084,66366.0,66365.0,2.25409086]
[1722380520349,0.00084,66366.0,66365.0,2.28809086]
[1722380520794,0.0452193,66369.0,66365.0,2.27409086]
[1722380521001,0.06782896,66371.0,66370.0,0.19089]
[1722380521002,0.0452193,66371.0,66370.0,0.19089]
[1722380521218,0.1034,66389.0,66376.0,0.451969]
[1722380521433,0.12155006,66377.0,66376.0,0.561669]
[1722380521646,0.12155006,66377.0,66376.0,1.164295]
[1722380521859,0.12155006,66377.0,66376.0,1.465608]
[1722380522705,0.12155006,66377.0,66376.0,1.479608]
[1722380522918,0.12155006,66377.0,66376.0,1.392908]
[1722380523132,0.12155006,66377.0,66376.0,1.479608]
[1722380523355,0.0085,66377.0,66376.0,1.622708]
[1722380523579,0.0763377,66377.0,66376.0,1.622708]
[1722380523787,0.05371805,66377.0,66376.0,1.622708]
[1722380523992,0.05371805,66377.0,66376.0,1.636708]
[1722380524272,0.05371805,66377.0,66376.0,1.666928]
[1722380524273,0.0085,66377.0,66376.0,1.666928]
[1722380524506,0.05372233,66377.0,66376.0,1.81756104]
[1722380524723,0.0085,66377.0,66376.0,2.37409892]
[1722380525164,0.0085,66377.0,66376.0,2.36009892]
[1722380525553,0.0085,66377.0,66376.0,2.37409892]
[1722380526043,0.0085,66377.0,66376.0,2.36009892]
[1722380526284,0.0085,66377.0,66376.0,2.34009892]
[1722380526498,0.0085,66377.0,66376.0,2.35409892]
[1722380526710,0.0085,66377.0,66376.0,2.34009892]
[1722380526923,0.0085,66377.0,66376.0,2.32609892]
[1722380527175,0.0085,66377.0,66376.0,2.34009892]
[1722380527389,0.0085,66377.0,66376.0,2.21487404]
[1722380527632,0.0085,66377.0,66376.0,2.34008917]
[1722380528058,0.0085,66377.0,66376.0,2.37408917]
[1722380528696,0.0085,66384.0,66383.0,1.355764]
[1722380528913,0.0085,66384.0,66383.0,2.18789804]
[1722380531141,0.0085,66384.0,66383.0,2.20189804]
[1722380531348,0.0085,66384.0,66383.0,2.21589804]
[1722380531551,0.0085,66384.0,66383.0,2.20189804]
[1722380531762,0.0085,66384.0,66383.0,2.21189804]
[1722380531966,0.0085,66384.0,66383.0,2.22589804]
[1722380532677,0.0085,66384.0,66383.0,2.21189804]
[1722380533311,0.0085,66384.0,66383.0,2.23189804]
[1722380533519,0.0085,66384.0,66383.0,2.24789804]
[1722380533938,0.00849,66385.0,66384.0,1.562966]
[1722380533939,0.0046592,66385.0,66384.0,1.562966]
[1722380534145,0.1034,66389.0,66388.0,0.639108]
[1722380534318,0.1034,66389.0,66388.0,1.27570004]
[1722380534567,0.1034,66389.0,66388.0,1.31870004]
[1722380534784,0.1034,66389.0,66388.0,2.52573604]
[1722380534988,0.65845721,66406.0,66397.0,0.361438]
[1722380534989,0.00849,66406.0,66397.0,0.361438]
[1722380535209,0.00849,66406.0,66397.0,1.61981604]
[1722380535436,0.00849,66406.0,66397.0,1.92303404]
[1722380535713,0.00849,66406.0,66397.0,2.20225204]
[1722380537691,0.00849,66406.0,66397.0,2.21625204]
[1722380538133,0.15099,66398.0,66397.0,0.465827]
[1722380538340,0.15099,66398.0,66397.0,1.168263]
[1722380538794,0.15099,66398.0,66397.0,1.182263]
[1722380539011,0.15099,66398.0,66397.0,1.168263]
[1722380539724,0.15099,66398.0,66397.0,1.182263]
[1722380539952,0.15099,66398.0,66397.0,1.205263]
[1722380541470,0.00849,66398.0,66397.0,1.506481]
[1722380543453,0.00849,66398.0,66397.0,1.65711404]
[1722380545017,0.00849,66398.0,66397.0,1.73781404]
[1722380545230,0.00849,66398.0,66397.0,1.80401404]
[1722380547199,0.00849,66398.0,66397.0,2.44667004]
[1722380547417,0.00849,66406.0,66405.0,1.395539]
[1722380547626,0.00849,66406.0,66405.0,1.75587204]
[1722380549095,0.00849,66406.0,66405.0,1.76987204]
[1722380549304,0.00849,66406.0,66405.0,1.75587204]
[1722380549940,0.00849,66406.0,66405.0,1.76987204]
[1722380550581,0.00849,66406.0,66405.0,1.75587204]
[1722380550834,0.00849,66406.0,66405.0,1.76987204]
[1722380551265,0.00849,66406.0,66405.0,1.78387204]
[1722380553366,0.00845,66406.0,66405.0,1.78387204]
[1722380556780,0.00845,66406.0,66405.0,1.79298689]
[1722380565392,0.00845,66406.0,66405.0,1.93708689]
[1722380568419,0.00845,66406.0,66405.0,2.53945089]
[1722380568652,0.00849,66415.0,66414.0,1.219593]
[1722380568881,0.00849,66415.0,66414.0,1.573954]
[1722380569347,0.00849,66415.0,66414.0,1.64788704]
[1722380569569,0.00849,66415.0,66414.0,1.73458704]
[1722380570821,0.00849,66415.0,66414.0,1.66968704]
[1722380571337,0.00849,66415.0,66414.0,1.68368704]
[1722380571574,0.00849,66415.0,66414.0,1.66968704]
[1722380571705,0.00849,66415.0,66414.0,1.68368704]
[1722380571946,0.00849,66415.0,66414.0,1.69266722]
[1722380573193,0.00849,66415.0,66414.0,1.67866722]
[1722380573413,0.00849,66415.0,66414.0,1.66968704]
[1722380573639,0.00849,66415.0,66414.0,1.68368704]
[1722380576894,0.00849,66415.0,66414.0,1.67368704]
[1722380577369,0.00849,66415.0,66414.0,1.50926297]
[1722380577611,0.08789,66415.0,66414.0,1.09120197]
[1722380577846,0.15369,66415.0,66414.0,1.09120197]
[1722380578350,0.15369,66415.0,66414.0,1.17790197]
[1722380578601,0.19880194,66415.0,66414.0,1.17790197]
[1722380579092,0.19880194,66415.0,66414.0,1.20812197]
[1722380579331,0.13300194,66415.0,66414.0,1.20812197]
[1722380579573,0.05360194,66415.0,66414.0,1.23112197]
[1722380579811,0.00849,66415.0,66414.0,1.23112197]
[1722380580762,0.0762158,66415.0,66414.0,1.23112197]
[1722380582129,0.07622574,66415.0,66414.0,1.23112197]
[1722380582610,0.15472548,66415.0,66414.0,1.12142197]
[1722380584994,0.09622548,66415.0,66414.0,1.12142197]
[1722380585537,0.09623957,66415.0,66414.0,1.14442197]
[1722380585806,0.02849,66415.0,66414.0,1.14442197]
[1722380587687,0.11882276,66415.0,66414.0,1.14442197]
[1722380588034,0.11882276,66415.0,66414.0,1.59619601]
[1722380588253,0.02849,66415.0,66414.0,1.73639601]
[1722380588758,0.02849,66415.0,66414.0,2.13753701]
[1722380597139,0.02849,66415.0,66414.0,2.44867801]
[1722380597326,0.0451882,66426.0,66425.0,0.150545]
[1722380597548,0.0451882,66426.0,66423.0,0.1443]
[1722380597549,0.0451882,66428.0,66426.0,0.390463]
[1722380597756,0.06999,66427.0,66426.0,1.153801]
[1722380597972,0.14539,66427.0,66426.0,0.852715]
[1722380598180,0.14539,66427.0,66426.0,0.551629]
[1722380598392,0.14539,66427.0,66426.0,0.852715]
[1722380598613,0.23575508,66427.0,66426.0,0.852715]
[1722380599498,0.14539,66427.0,66426.0,0.852715]
[1722380600098,0.14539,66427.0,66426.0,0.866715]
[1722380600309,0.14539,66427.0,66426.0,0.880715]
[1722380600722,0.14539,66427.0,66426.0,0.88969523]
[1722380602346,0.14539,66427.0,66426.0,0.579629]
[1722380602558,0.14539,66427.0,66426.0,0.880715]
[1722380603425,0.14539,66427.0,66426.0,0.780715]
[1722380605962,0.14539,66427.0,66426.0,0.479629]
[1722380606178,0.215672,66427.0,66426.0,0.028]
[1722380606404,0.452913,66427.0,66426.0,0.028]
[1722380606635,0.302372,66427.0,66426.0,0.028]
[1722380607064,1.05504615,66427.0,66426.0,0.028]
[1722380607266,0.30234115,66427.0,66426.0,0.028]
[1722380607476,0.45288215,66427.0,66426.0,0.028]
[1722380607695,0.3497592,66427.0,66426.0,0.028]
[1722380608099,0.34994344,66427.0,66426.0,0.028]
[1722380608327,0.19940244,66427.0,66426.0,0.028]
[1722380608591,0.19940244,66427.0,66426.0,0.178543]
[1722380609137,0.19940244,66427.0,66426.0,1.168501]
[1722380609138,0.06250244,66427.0,66426.0,1.168501]
[1722380609450,0.07625518,66427.0,66426.0,1.254501]
[1722380609653,0.07625518,66427.0,66426.0,1.555587]
[1722380609654,0.05366366,66427.0,66426.0,1.555587]
[1722380609829,0.00849,66427.0,66426.0,1.555587]
[1722380610232,0.00849,66427.0,66426.0,1.527587]
[1722380610411,0.00849,66427.0,66426.0,1.555587]
[1722380610612,0.00849,66427.0,66426.0,1.655587]
[1722380610819,0.00849,66427.0,66426.0,1.641587]
[1722380611032,0.00849,66427.0,66426.0,1.80622004]
[1722380611256,0.00849,66427.0,66426.0,1.93532004]
[1722380611955,0.00849,66427.0,66426.0,1.92132004]
[1722380612204,0.00849,66427.0,66426.0,1.93532004]
[1722380617136,0.00849,66427.0,66426.0,1.94433683]
[1722380617766,0.00849,66427.0,66426.0,1.72853683]
[1722380624564,0.00849,66427.0,66426.0,1.80673683]
[1722380625765,0.00849,66427.0,66426.0,1.83695683]
[1722380626617,0.00849,66427.0,66426.0,1.82295683]
[1722380627040,0.00849,66427.0,66426.0,1.83695683]
[1722380629027,0.00849,66427.0,66426.0,2.13804283]
[1722380630123,0.00849,66427.0,66426.0,2.12404283]
[1722380630748,0.00849,66427.0,66426.0,2.11004283]
[1722380630893,0.00849,66427.0,66426.0,2.12404283]
[1722380631092,0.00849,66427.0,66426.0,2.11004283]
[1722380631348,0.00849,66427.0,66426.0,2.19634283]
[1722380631514,0.00849,66427.0,66426.0,2.21034283]
[1722380631737,0.00849,66427.0,66426.0,2.22434283]
[1722380632386,0.00849,66427.0,66426.0,2.24034283]
[1722380632623,0.00849,66427.0,66426.0,2.25434283]
[1722380632624,1e-08,66427.0,66426.0,2.25434283]
[1722380632841,0.00849,66431.0,66430.0,1.834194]
[1722380633057,0.00849,66431.0,66430.0,2.19412704]
[1722380634127,0.00849,66431.0,66430.0,2.20812704]
[1722380634358,0.00849,66431.0,66430.0,2.19412704]
[1722380634700,0.00849,66431.0,66430.0,2.20310682]
[1722380635124,0.00849,66431.0,66430.0,2.21710682]
[1722380635578,0.00849,66431.0,66430.0,2.22212704]
[1722380636415,0.00849,66431.0,66430.0,2.20812704]
[1722380636632,0.00849,66431.0,66430.0,2.22212704]
[1722380637098,0.00849,66431.0,66430.0,2.20812704]
[1722380637338,0.00849,66431.0,66430.0,2.22212704]
[1722380638064,0.00849,66431.0,66430.0,2.20812704]
[1722380638695,0.00849,66431.0,66430.0,2.22212704]
[1722380640716,0.00849,66431.0,66430.0,1.92105904]
[1722380640922,0.00849,66431.0,66430.0,1.68665904]
[1722380641139,0.00849,66431.0,66430.0,1.599326]
[1722380642041,0.00849,66431.0,66430.0,1.569106]
[1722380642684,0.00849,66431.0,66430.0,1.592106]
[1722380644303,0.00849,66431.0,66430.0,0.90367]
[1722380644532,0.15229,66431.0,66430.0,1.181738]
[1722380644808,0.19742234,66431.0,66430.0,1.181738]
[1722380645719,0.19742234,66431.0,66430.0,1.167738]
[1722380645939,0.19742234,66431.0,66430.0,1.254038]
[1722380646366,0.19742234,66431.0,66430.0,1.240038]
[1722380646570,0.19742234,66431.0,66430.0,1.254038]
[1722380646856,0.15229,66431.0,66430.0,0.88067]
[1722380647073,0.21999612,66431.0,66430.0,0.86667]
[1722380647723,0.21999612,66431.0,66430.0,0.88067]
[1722380647937,0.21999612,66431.0,66430.0,0.86667]
[1722380648151,0.21999612,66431.0,66430.0,0.88067]
[1722380648591,0.15229,66431.0,66430.0,0.88067]
[1722380649240,0.24257608,66431.0,66430.0,0.88067]
[1722380649457,0.15229,66431.0,66430.0,0.88067]
[1722380649678,0.24257904,66431.0,66430.0,0.88067]
[1722380649904,0.24257842,66431.0,66430.0,0.88067]
[1722380650110,0.24257762,66431.0,66430.0,0.88067]
[1722380650781,0.24257762,66431.0,66430.0,0.96697]
[1722380650990,0.15229,66431.0,66430.0,0.96697]
[1722380651227,0.24257762,66431.0,66430.0,0.96697]
[1722380652340,0.15229,66431.0,66430.0,0.96697]
[1722380653508,0.26520694,66431.0,66430.0,1.268038]
[1722380653717,0.15229,66431.0,66430.0,0.96697]
[1722380654341,0.24261742,66431.0,66430.0,0.96697]
[1722380654550,0.09881742,66431.0,66430.0,1.268038]
[1722380654760,0.00849,66431.0,66430.0,1.268038]
[1722380654973,0.00849,66431.0,66430.0,1.438338]
[1722380655392,0.09881742,66431.0,66430.0,1.438338]
[1722380656656,0.09887301,66431.0,66430.0,1.438338]
[1722380659239,0.09887301,66431.0,66430.0,1.424338]
[1722380659706,0.09887301,66431.0,66430.0,1.438338]
[1722380660166,0.09887301,66431.0,66430.0,1.424338]
[1722380660599,0.09887301,66431.0,66430.0,1.438338]
[1722380662955,0.09887837,66431.0,66430.0,1.438338]
[1722380663807,0.09887837,66431.0,66430.0,1.373338]
[1722380666230,0.098881,66431.0,66430.0,1.373338]
[1722380666659,0.00849,66431.0,66430.0,1.373338]
[1722380666874,0.09888223,66431.0,66430.0,1.373338]
[1722380667992,0.00849,66431.0,66430.0,1.373338]
[1722380668200,0.09888223,66431.0,66430.0,1.373338]
[1722380668649,0.00849,66431.0,66430.0,1.373338]
[1722380669085,0.09888223,66431.0,66430.0,1.373338]
[1722380669312,0.00849,66431.0,66430.0,1.373338]
[1722380669816,0.09888291,66431.0,66430.0,1.373338]
[1722380672737,0.09889001,66431.0,66430.0,1.373338]
[1722380675871,0.00849,66431.0,66430.0,1.373338]
[1722380677499,0.00849,66431.0,66430.0,1.291038]
[1722380681698,0.00849,66431.0,66430.0,1.436338]
[1722380681923,0.12151959,66431.0,66430.0,1.436338]
[1722380682143,0.00849,66431.0,66430.0,1.436338]
[1722380682358,0.12151804,66431.0,66430.0,1.436338]
[1722380682596,0.12152768,66431.0,66430.0,1.436338]
[1722380685449,0.00849,66431.0,66430.0,1.436338]
[1722380689134,0.00849,66431.0,66430.0,1.291038]
[1722380689303,0.15219,66431.0,66430.0,1.291038]
[1722380689512,0.00849,66431.0,66430.0,1.291038]
[1722380691449,0.00849,66431.0,66430.0,0.78067]
[1722380691682,0.06279715,66431.0,66430.0,0.78067]
[1722380692597,0.28009709,66431.0,66430.0,0.028]
[1722380692820,0.39109785,66431.0,66430.0,0.028]
[1722380693073,0.74339315,66431.0,66430.0,0.028]
[1722380693542,1.04445715,66431.0,66430.0,0.014]
[1722380693749,0.150542,66427.0,66425.0,0.00891216]
[1722380693970,0.19700715,66426.0,66422.0,0.150552]
[1722380694179,0.19700715,66425.0,66422.0,0.150552]
[1722380694386,0.05430715,66424.0,66423.0,0.15055]
[1722380695296,0.05430715,66424.0,66421.0,0.301107]
[1722380695297,0.1427,66423.0,66422.0,0.014]
[1722380695525,0.1427,66423.0,66418.0,0.000913]
[1722380695526,0.1427,66422.0,66420.0,0.15933418]
[1722380695755,0.13554267,66421.0,66420.0,0.15933418]
[1722380695967,0.2448586,66421.0,66420.0,0.15933418]
[1722380696184,0.33765356,66421.0,66418.0,0.000913]
[1722380696394,0.05465792,66420.0,66418.0,0.000913]
[1722380696619,0.19020059,66420.0,66419.0,0.150558]
[1722380697445,0.05465792,66420.0,66419.0,0.150558]
[1722380697663,0.05465792,66420.0,66418.0,0.014913]
[1722380697664,0.1462,66419.0,66418.0,0.014913]
[1722380697941,1.34107092,66419.0,66418.0,0.000913]
[1722380698368,1.59419685,66419.0,66418.0,0.000913]
[1722380698578,1.34296369,66419.0,66418.0,0.000913]
[1722380698784,1.64408169,66419.0,66418.0,0.000913]
[1722380698991,1.65818097,66419.0,66418.0,0.000913]
[1722380699458,1.50587098,66419.0,66418.0,0.000913]
[1722380700304,1.51087098,66419.0,66418.0,0.000913]
[1722380701179,1.81198898,66419.0,66418.0,0.000913]
[1722380701405,1.91202532,66419.0,66418.0,0.000913]
[1722380701616,2.08141226,66419.0,66418.0,0.000913]
[1722380702234,2.18141226,66419.0,66418.0,0.000913]
[1722380703181,1.79399426,66419.0,66418.0,0.000913]
[1722380703625,1.87029426,66419.0,66418.0,0.000913]
[1722380704101,1.88029426,66419.0,66418.0,0.000913]
[1722380704368,1.6687452,66419.0,66418.0,0.000913]
[1722380704598,1.6787452,66419.0,66418.0,0.000913]
[1722380704830,1.81452942,66419.0,66418.0,0.000913]
[1722380705064,1.67953321,66419.0,66418.0,0.000913]
[1722380706796,0.98502264,66419.0,66418.0,0.000913]
[1722380707031,0.87262089,66419.0,66418.0,0.000913]
[1722380707497,1.103113,66419.0,66418.0,0.000913]
[1722380707777,0.8701826,66419.0,66418.0,0.000913]
[1722380708017,0.8721826,66419.0,66418.0,0.000913]
[1722380708451,1.31540923,66419.0,66418.0,0.000913]
[1722380708709,1.31840923,66419.0,66418.0,0.000913]
[1722380709118,1.41532153,66419.0,66418.0,0.000913]
[1722380709524,1.32840923,66419.0,66418.0,0.000913]
[1722380709932,1.32540923,66419.0,66418.0,0.000913]
[1722380710176,1.32540923,66419.0,66418.0,0.002913]
[1722380710382,1.32840923,66419.0,66418.0,0.000913]
[1722380710590,1.26022163,66419.0,66418.0,0.000913]
[1722380710818,1.3280216,66419.0,66418.0,0.000913]
[1722380711213,1.3300216,66419.0,66418.0,0.000913]
[1722380711418,1.39741461,66419.0,66418.0,0.000913]
[1722380711654,1.39241461,66419.0,66418.0,0.000913]
[1722380711789,1.39741461,66419.0,66418.0,0.000913]
[1722380712457,1.3300216,66419.0,66418.0,0.000913]
[1722380712800,1.3200216,66419.0,66418.0,0.000913]
[1722380712999,1.3240216,66419.0,66418.0,0.000913]
[1722380713412,1.17691297,66419.0,66418.0,0.000913]
[1722380713614,1.26321297,66419.0,66418.0,0.000913]
[1722380713842,1.195413,66419.0,66418.0,0.000913]
[1722380714018,1.24033389,66419.0,66418.0,0.000913]
[1722380714319,1.32706174,66419.0,66418.0,0.000913]
[1722380714510,1.47775606,66419.0,66418.0,0.000913]
[1722380714726,1.48175606,66419.0,66418.0,0.000913]
[1722380715380,1.47675606,66419.0,66418.0,0.000913]
[1722380715523,1.48275606,66419.0,66418.0,0.000913]
[1722380716135,1.47675606,66419.0,66418.0,0.000913]
[1722380716338,1.47475606,66419.0,66418.0,0.000913]
[1722380717220,1.40648416,66419.0,66418.0,0.000913]
[1722380717431,1.47484287,66419.0,66418.0,0.000913]
[1722380717634,1.47489508,66419.0,66418.0,0.000913]
[1722380717834,1.12432366,66419.0,66418.0,0.000913]
[1722380718068,1.21062366,66419.0,66418.0,0.000913]
[1722380719365,1.21125662,66419.0,66418.0,0.000913]
[1722380720499,1.21118881,66419.0,66418.0,0.000913]
[1722380720749,1.27857379,66419.0,66418.0,0.000913]
[1722380720992,1.21118881,66419.0,66418.0,0.000913]
[1722380721212,1.36188313,66419.0,66418.0,0.000913]
[1722380722617,1.46458971,66419.0,66418.0,0.000913]
[1722380722838,1.53198799,66419.0,66418.0,0.000913]
[1722380723832,1.31434779,66419.0,66418.0,0.000913]
[1722380724071,0.62581179,66419.0,66418.0,0.000913]
[1722380724311,0.22180403,66419.0,66418.0,0.139913]
[1722380724530,0.07124503,66419.0,66418.0,0.290474]
[1722380724753,0.07124503,66419.0,66418.0,0.591597]
[1722380724978,0.06924503,66419.0,66418.0,0.591597]
[1722380725205,0.06949438,66420.0,66419.0,0.150557]
[1722380725467,0.06949438,66420.0,66419.0,0.06535873]
[1722380725468,0.06949378,66420.0,66419.0,0.06535873]
[1722380725704,0.160559,66419.0,66418.0,0.000913]
[1722380725954,0.160559,66419.0,66418.0,0.013913]